[Event "Asian Amateur Rapid 2024"]
[Site "Al Ain"]
[Date "2024.12.15"]
[Round "4.23"]
[White "Al Namas, Kanan"]
[Black "Olimjonov, Muhammadziyo"]
[Result "1-0"]
[ECO "C02"]
[WhiteElo "1813"]
[BlackElo "1505"]
[Annotator "NA COMBH"]
[PlyCount "117"]
[EventDate "2024.12.15"]
[EventType "swiss"]
[EventCountry "UAE"]
[SourceTitle "playchess.com"]
[Source "ChessBase"]
[SourceQuality "1"]
[TimeControl "900+10"]

1. e4 {[%emt 0:00:03]} e6 {[%emt 0:00:17]} 2. d4 {[%emt 0:00:06]} d5 {[%emt 0:00:03]} 3. e5 {[%emt 0:00:02]} c5 {[%emt 0:00:03]} 4. c3 {[%emt 0:00:02]} Nc6 {[%emt 0:00:01]} 5. f4 {[%emt 0:00:04]} a6 {[%emt 0:00:03]} 6. Nf3 {[%emt 0:00:04] C02: French: Advance Variation.} b5 {[%emt 0:00:02]} 7. Be3 {[%emt 0:00:24]} c4 {[%emt 0:00:02]} 8. Be2 {[%emt 0:00:08]} Nge7 {[%emt 0:00:10]} 9. O-O {[%emt 0:00:26]} a5 {[%emt 0:00:03]} 10. g4 {[%emt 0:00:07]} b4 {[%emt 0:00:03]} 11. Nbd2 {[%emt 0:00:24]} g6 {[%emt 0:00:38]} 12. Rf2 {[%emt 0:00:42]} Qc7 {[%emt 0:00:10]} 13. Nf1 {[%emt 0:00:17]} Bd7 {[%emt 0:00:38]} 14. Ng3 {[%emt 0:00:04]} Bg7 {[%emt 0:01:51]} 15. Nh4 {[%emt 0:00:13]} Qc8 {[%emt 0:01:12]} 16. Qc2 {[%emt 0:00:16]} f5 {[%emt 0:00:53]} 17. exf6 {[%emt 0:00:13]} Bxf6 {[%emt 0:00:06]} 18. Nf3 {[%emt 0:00:09]} O-O {[%emt 0:00:11]} 19. Ne5 {[%emt 0:00:23]} Bg7 {[%emt 0:00:37]} 20. Raf1 {[%emt 0:00:10]} Nxe5 {[%emt 0:00:17]} 21. fxe5 {[%emt 0:00:06]} Qb7 {[%emt 0:00:09]} 22. Bg5 {[%emt 0:00:16]} Nc6 {[%emt 0:00:23]} 23. h4 {[%emt 0:00:16]} b3 {[%emt 0:00:25]} 24. axb3 {[%emt 0:00:06]} Qxb3 {[%emt 0:00:02]} 25. Qd2 {[%emt 0:00:25]} Rab8 {[%emt 0:00:04]} 26. Bd1 {[%emt 0:00:23]} Qb7 {[%emt 0:00:14]} 27. h5 {[%emt 0:00:11]} Rxf2 {[%emt 0:00:09]} 28. Rxf2 {[%emt 0:00:18]} Rf8 {[%emt 0:00:02]} 29. h6 {[%emt 0:00:29]} Rxf2 {[%emt 0:00:22]} 30. Qxf2 {[%emt 0:00:10]} Bf8 {[%emt 0:00:03]} 31. Bc1 {[%emt 0:00:50]} Be8 {[%emt 0:00:12]} 32. Nf1 {[%emt 0:04:23]} Qf7 {[%emt 0:00:10]} 33. Qh4 {[%emt 0:00:18]} Be7 {[%emt 0:00:14]} 34. g5 {[%emt 0:00:08]} Na7 {[%emt 0:00:47]} 35. Ne3 {[%emt 0:00:24]} Nc8 {[%emt 0:01:06]} 36. Ng4 {[%emt 0:00:16]} Nb6 {[%emt 0:00:41]} 37. Nf6+ {[%emt 0:00:23]} Bxf6 {[%emt 0:00:05]} 38. exf6 {[%emt 0:00:45]} Qc7 {[%emt 0:00:17]} 39. Bf4 {[%emt 0:00:32]} Qb7 {[%emt 0:00:04]} 40. Qe1 {[%emt 0:00:13]} Kf7 {[%emt 0:00:12]} 41. Qe5 {[%emt 0:01:20]} Ba4 {[%emt 0:01:05]} 42. Bg4 {[%emt 0:00:28]} Bd7 {[%emt 0:00:24]} 43. Qd6 {[%emt 0:00:50]} Nc8 {[%emt 0:00:14]} 44. Qa3 {[%emt 0:00:55]} a4 {[%emt 0:00:29]} 45. Bd1 {[%emt 0:01:16]} Qa6 {[%emt 0:00:56]} 46. Bc7 {[%emt 0:00:12]} Qc6 {[%emt 0:00:42]} 47. Bd8 {[%emt 0:00:50]} Qd6 {[%emt 0:00:07]} 48. Qxd6 {[%emt 0:00:49]} Nxd6 {[%emt 0:00:02]} 49. Bc2 {[%emt 0:00:13]} Ke8 {[%emt 0:00:04]} 50. Bc7 {[%emt 0:00:16]} Nb5 {[%emt 0:00:06]} 51. Be5 {[%emt 0:00:34]} a3 {[%emt 0:00:10]} 52. bxa3 {[%emt 0:00:02]} Nxa3 {[%emt 0:00:03]} 53. Bxg6+ {[%emt 0:00:02]} Kf8 {[%emt 0:00:04]} 54. Bxh7 {[%emt 0:00:11]} Be8 {[%emt 0:00:07]} 55. g6 {[%emt 0:00:05]} Bf7 {[%emt 0:00:06]} 56. g7+ {[%emt 0:00:06]} Ke8 {[%emt 0:00:01]} 57. g8=Q+ {[%emt 0:00:08]} Bxg8 {[%emt 0:00:02]} 58. Bxg8 {[%emt 0:00:02]} Nb1 {[%emt 0:00:01] Check Result:#6} 59. h7 {[%emt 0:00:03]} 1-0

[Event "Asian Amateur Rapid 2024"]
[Site "Al Ain"]
[Date "2024.12.15"]
[Round "4.24"]
[White "Gong, Bonuonuo"]
[Black "Shafaghati, Rastin"]
[Result "1/2-1/2"]
[ECO "A13"]
[WhiteElo "1685"]
[BlackElo "1575"]
[Annotator "NA COMBH"]
[PlyCount "94"]
[EventDate "2024.12.15"]
[EventType "swiss"]
[EventCountry "UAE"]
[SourceTitle "playchess.com"]
[Source "ChessBase"]
[SourceQuality "1"]
[TimeControl "900+10"]

1. c4 {[%emt 0:00:00]} e6 {[%emt 0:00:02]} 2. Nc3 {[%emt 0:00:01]} d5 {[%emt 0:15:28]} 3. e3 Nf6 {[%emt 0:00:00]} 4. Nf3 {[%emt 0:00:12]} Be7 {[%emt 0:00:00]} 5. b3 {[%emt 0:00:03]} O-O {[%emt 0:00:00]} 6. Bb2 {[%emt 0:00:01]} c5 {[%emt 0:00:00]} 7. cxd5 {[%emt 0:00:02]} exd5 {[%emt 0:00:00]} 8. d4 {[%emt 0:00:01]} Nc6 {[%emt 0:00:00]} 9. Bb5 {[%emt 0:01:40]} a6 {[%emt 0:00:00]} 10. Bxc6 {[%emt 0:00:02]} bxc6 {[%emt 0:00:00]} 11. O-O {[%emt 0:00:03]} cxd4 {[%emt 0:00:00]} 12. Nxd4 {[%emt 0:00:08]} Bd7 {[%emt 0:00:00]} 13. Rc1 {[%emt 0:00:16]} c5 {[%emt 0:00:00]} 14. Nf3 {[%emt 0:00:02]} Bg4 {[%emt 0:00:00]} 15. Na4 {[%emt 0:00:29]} Ne4 {[%emt 0:00:00]} 16. h3 {[%emt 0:14:50]} Be6 {[%emt 0:00:00]} 17. Nd2 {[%emt 0:00:00]} Nxd2 {[%emt 0:00:00]} 18. Qxd2 {[%emt 0:00:00]} c4 {[%emt 0:00:00]} 19. bxc4 {[%emt 0:00:00]} dxc4 {[%emt 0:00:00]} 20. Qxd8 {[%emt 0:00:00]} Rfxd8 {[%emt 0:00:00]} 21. Nb6 {[%emt 0:00:00]} Rab8 {[%emt 0:00:00]} 22. Bd4 {[%emt 0:00:00]} Rxd4 {[%emt 0:00:00]} 23. exd4 {[%emt 0:00:00]} Rxb6 {[%emt 0:00:00]} 24. Rfe1 {[%emt 0:00:00]} Rd6 {[%emt 0:00:33]} 25. d5 {[%emt 0:00:00]} Rxd5 {[%emt 0:00:04]} 26. Rxc4 {[%emt 0:00:00]} g6 {[%emt 0:00:24]} 27. a4 {[%emt 0:00:00]} Ra5 {[%emt 0:01:27]} 28. Rce4 {[%emt 0:00:00]} Bf6 {[%emt 0:00:19]} 29. Rc1 {[%emt 0:00:00]} Bf5 {[%emt 0:00:55]} 30. Re8+ {[%emt 0:00:00]} Kg7 {[%emt 0:00:03]} 31. Rc4 {[%emt 0:00:00]} Bd7 {[%emt 0:00:23]} 32. Ree4 {[%emt 0:00:00]} Be6 {[%emt 0:00:04]} 33. Rc7 {[%emt 0:00:00]} Bf5 {[%emt 0:00:16]} 34. Rb4 {[%emt 0:00:00]} Rd5 {[%emt 0:00:24]} 35. g4 {[%emt 0:00:00]} Rd1+ {[%emt 0:00:05]} 36. Kg2 {[%emt 0:00:00]} Be6 {[%emt 0:00:04]} 37. Rc2 {[%emt 0:00:00]} Bd5+ {[%emt 0:00:12]} 38. f3 {[%emt 0:00:00]} Rd3 {[%emt 0:00:47]} 39. Rf2 {[%emt 0:00:00]} Bd4 {[%emt 0:00:00]} 40. Rf1 {[%emt 0:00:00]} a5 {[%emt 0:00:00]} 41. Rb5 {[%emt 0:00:12]} Rd2+ {[%emt 0:00:07]} 42. Kg3 {[%emt 0:00:57]} Be5+ {[%emt 0:00:04]} 43. f4 {[%emt 0:00:02]} Rd3+ {[%emt 0:00:13]} 44. Kh2 {[%emt 0:00:10]} Rd2+ {[%emt 0:00:03]} 45. Kg3 {[%emt 0:00:01]} Rd3+ {[%emt 0:00:06]} 46. Kh2 {[%emt 0:00:02]} Rd2+ {[%emt 0:00:06]} 47. Kg3 {[%emt 0:00:02] Check Result:0.00} Rd3+ {[%emt 0:00:12]} 1/2-1/2

[Event "Asian Amateur Rapid 2024"]
[Site "Al Ain"]
[Date "2024.12.15"]
[Round "4.25"]
[White "Godhani Maharth"]
[Black "Kim, Taewoo A"]
[Result "0-1"]
[ECO "D06"]
[WhiteElo "1798"]
[BlackElo "1863"]
[Annotator "NA COMBH"]
[PlyCount "65"]
[EventDate "2024.12.15"]
[EventType "swiss"]
[EventCountry "UAE"]
[SourceTitle "playchess.com"]
[Source "ChessBase"]
[SourceQuality "1"]
[TimeControl "900+10"]

1. d4 {[%emt 0:00:07]} d5 {[%emt 0:00:02]} 2. Nf3 {[%emt 0:00:02]} Bf5 {[%emt 0:00:01]} 3. e3 {[%emt 0:00:02]} e6 {[%emt 0:00:03]} 4. c4 {[%emt 0:00:01]} Nf6 {[%emt 0:00:10]} 5. Nc3 {[%emt 0:00:10]} Be7 {[%emt 0:00:19]} 6. Bd3 {[%emt 0:00:13]} dxc4 {[%emt 0:02:04]} 7. Bxc4 {[%emt 0:00:02]} Nbd7 {[%emt 0:00:26]} 8. O-O {[%emt 0:00:09]} c5 {[%emt 0:00:19]} 9. Re1 {[%emt 0:00:19]} cxd4 {[%emt 0:00:36]} 10. Nxd4 {[%emt 0:00:03]} Bg6 {[%emt 0:00:25]} 11. e4 {[%emt 0:00:21]} Nb6 {[%emt 0:01:15]} 12. Bb5+ {[%emt 0:00:04]} Nfd7 {[%emt 0:00:03]} 13. a4 {[%emt 0:00:23]} a6 {[%emt 0:00:09]} 14. Bf1 {[%emt 0:00:03]} Rc8 {[%emt 0:00:27]} 15. a5 {[%emt 0:01:00]} Nc4 {[%emt 0:00:33]} 16. Qa4 {[%emt 0:02:13]} Qc7 {[%emt 0:00:05]} 17. Nce2 {[%emt 0:04:26]} Bxe4 {[%emt 0:00:58]} 18. b3 {[%emt 0:00:11]} Nd6 {[%emt 0:00:18]} 19. Bf4 {[%emt 0:00:07]} Bc6 {[%emt 0:01:07]} 20. Nxc6 {[%emt 0:00:27]} Qxc6 {[%emt 0:00:02]} 21. Qd4 {[%emt 0:02:14]} Nf5 {[%emt 0:00:10]} 22. Qd2 {[%emt 0:00:14]} O-O {[%emt 0:03:55]} 23. g3 {[%emt 0:01:58]} Nf6 {[%emt 0:00:41]} 24. Bg2 {[%emt 0:00:20]} Nd5 {[%emt 0:00:21]} 25. Nc1 {[%emt 0:00:58]} Bb4 {[%emt 0:01:22]} 26. Bxd5 {[%emt 0:00:34]} Bxd2 $17 {[%emt 0:00:04]} ({Black should try} 26... Qc5 $19 27. Nd3 Bxd2 (27... Qxd5 $2 {loses.} 28. Nxb4 Qxb3 29. Reb1 $18) 28. Nxc5 Rxc5 (28... exd5 29. Bxd2 Rxc5 30. Bb4 $17 (30. Ra4 $17)) (28... Bxe1 $2 29. Nxe6 Bxf2+ 30. Kxf2 $17) 29. Bxd2 Rxd5) 27. Bxc6 {[%emt 0:00:02]} Bxe1 {[%emt 0:00:10]} 28. Bxb7 {[%emt 0:00:01]} Rc2 {[%emt 0:00:41]} 29. Nd3 {[%emt 0:00:32]} Bc3 {[%emt 0:00:09]} 30. Ra4 {[%emt 0:00:02]} Nd4 {[%emt 0:01:15]} 31. Kg2 {[%emt 0:02:03]} Nxb3 {[%emt 0:00:40]} 32. Bc7 {[%emt 0:00:32]} Bd4 {[%emt 0:00:45] Check Result:-3.58} 33. Bb6 {[%emt 0:00:47]} 0-1

[Event "Asian Amateur Rapid 2024"]
[Site "Al Ain"]
[Date "2024.12.15"]
[Round "4.26"]
[White "Obado, Sean Adrich"]
[Black "Al Hinai, Qusay"]
[Result "0-1"]
[ECO "B13"]
[WhiteElo "1605"]
[BlackElo "1862"]
[Annotator "NA COMBH"]
[PlyCount "68"]
[EventDate "2024.12.15"]
[EventType "swiss"]
[EventCountry "UAE"]
[SourceTitle "playchess.com"]
[Source "ChessBase"]
[SourceQuality "1"]
[TimeControl "900+10"]

1. e4 {[%emt 0:00:01]} c6 {[%emt 0:00:22]} 2. d4 {[%emt 0:00:02]} d5 {[%emt 0:00:02]} 3. exd5 {[%emt 0:00:26]} cxd5 {[%emt 0:00:01]} 4. Nc3 {[%emt 0:00:01]} Nf6 {[%emt 0:00:05]} 5. Bf4 {[%emt 0:00:01]} a6 {[%emt 0:00:11]} 6. Nf3 {[%emt 0:00:04] B13: Caro-Kann: Exchange Variation and Panov-Botvinnik Attack.} Nc6 {[%emt 0:00:00]} 7. Bd3 {[%emt 0:00:04]} Bg4 {[%emt 0:00:06]} 8. Be5 {[%emt 0:00:19]} e6 {[%emt 0:00:30]} 9. h3 {[%emt 0:00:43]} Bxf3 {[%emt 0:00:12]} 10. Qxf3 {[%emt 0:00:16]} Nxe5 {[%emt 0:00:01]} 11. dxe5 {[%emt 0:00:03]} Nd7 {[%emt 0:00:01]} 12. Qg3 {[%emt 0:00:25]} Qc7 {[%emt 0:00:06]} 13. O-O {[%emt 0:01:23]} Qxe5 {[%emt 0:00:06]} 14. Qf3 {[%emt 0:00:25]} Qf6 {[%emt 0:00:11]} 15. Qg3 {[%emt 0:00:24]} Rc8 {[%emt 0:00:27]} 16. Rfe1 {[%emt 0:00:11]} Be7 {[%emt 0:00:25]} 17. Re2 {[%emt 0:00:39]} O-O {[%emt 0:00:13]} 18. Rae1 {[%emt 0:00:03]} Bb4 {[%emt 0:00:06]} 19. Rb1 {[%emt 0:01:53]} Bxc3 {[%emt 0:00:45]} 20. bxc3 {[%emt 0:00:02]} b5 {[%emt 0:00:00]} 21. Re3 {[%emt 0:00:34]} Rfd8 {[%emt 0:00:27]} 22. Rf3 {[%emt 0:00:12]} Qh6 {[%emt 0:00:02]} 23. Rf4 {[%emt 0:00:06]} g6 {[%emt 0:14:41]} 24. a4 {[%emt 0:01:38]} bxa4 {[%emt 0:00:00]} 25. Rxa4 {[%emt 0:00:33]} Nc5 {[%emt 0:00:00]} 26. Ra5 {[%emt 0:02:01]} Qd2 {[%emt 0:00:00]} 27. Bxa6 {[%emt 0:02:30]} Nxa6 {[%emt 0:00:00]} 28. Rxa6 {[%emt 0:00:12]} Qxc3 {[%emt 0:00:00]} 29. Qg5 {[%emt 0:01:35]} Qxc2 {[%emt 0:00:00]} 30. Rba1 {[%emt 0:00:30]} d4 $19 {[%emt 0:00:00]} 31. Ra7 {[%emt 0:01:28]} Qf5 {[%emt 0:00:00]} 32. Qe7 {[%emt 0:01:26]} d3 {[%emt 0:00:00]} 33. R1a5 {[%emt 0:00:14]} Rc1+ {[%emt 0:00:00]} 34. Kh2 {[%emt 0:00:09] Check Result:-#1} Qf4+ {[%emt 0:00:00]} 0-1

[Event "Asian Amateur Rapid 2024"]
[Site "Al Ain"]
[Date "2024.12.15"]
[Round "4.28"]
[White "Abdulla Ateeq Alremaeithi"]
[Black "Al Mamari, Said Ahmed"]
[Result "1-0"]
[ECO "A21"]
[WhiteElo "1639"]
[BlackElo "1707"]
[Annotator "NA COMBH"]
[PlyCount "89"]
[EventDate "2024.12.15"]
[EventType "swiss"]
[EventCountry "UAE"]
[SourceTitle "playchess.com"]
[Source "ChessBase"]
[SourceQuality "1"]
[TimeControl "900+10"]

1. c4 {[%emt 0:00:02]} e5 {[%emt 0:00:34]} 2. Nc3 {[%emt 0:00:03]} f5 {[%emt 0:00:21]} 3. Nf3 {[%emt 0:00:24]} d6 {[%emt 0:00:05]} 4. e3 {[%emt 0:00:08]} Nf6 {[%emt 0:00:08]} 5. d4 {[%emt 0:00:02]} Nbd7 {[%emt 0:00:11]} 6. Ng5 {[%emt 0:00:15]} Qe7 {[%emt 0:00:19]} 7. Nb5 {[%emt 0:00:09]} Nb6 {[%emt 0:00:15]} 8. dxe5 {[%emt 0:01:01]} dxe5 {[%emt 0:00:09]} 9. Be2 {[%emt 0:00:17]} c6 {[%emt 0:00:16]} 10. Nc3 {[%emt 0:00:14]} h6 {[%emt 0:00:18]} 11. Nf3 {[%emt 0:00:02]} g6 {[%emt 0:00:10]} 12. b3 {[%emt 0:00:11]} Bd7 {[%emt 0:00:18]} 13. Bb2 {[%emt 0:00:12]} O-O-O {[%emt 0:00:15]} 14. Qc2 {[%emt 0:00:06]} Bg7 {[%emt 0:00:41]} 15. O-O-O {[%emt 0:00:07]} e4 {[%emt 0:00:18]} 16. Nd4 {[%emt 0:00:09]} Ng4 {[%emt 0:00:06]} 17. Bxg4 {[%emt 0:01:00]} fxg4 {[%emt 0:00:18]} 18. Qxe4 {[%emt 0:00:16]} Qf7 {[%emt 0:00:06]} 19. Nce2 {[%emt 0:00:26]} c5 {[%emt 0:00:40]} 20. Nb5 {[%emt 0:00:15]} Bxb2+ {[%emt 0:00:16]} 21. Kxb2 {[%emt 0:00:05]} Bxb5 {[%emt 0:00:11]} 22. cxb5 {[%emt 0:00:08]} Qxf2 {[%emt 0:00:08]} 23. Qxg4+ {[%emt 0:00:07]} Kb8 {[%emt 0:00:05]} 24. Qf4+ {[%emt 0:00:18]} Qxf4 {[%emt 0:00:05]} 25. exf4 {[%emt 0:00:01]} Rde8 {[%emt 0:00:05]} 26. Rhe1 {[%emt 0:00:08]} c4 {[%emt 0:00:06]} 27. Kc2 {[%emt 0:01:00]} Re3 {[%emt 0:00:12]} 28. Nc3 {[%emt 0:01:36]} Rhe8 {[%emt 0:00:23]} 29. Rxe3 {[%emt 0:00:10]} Rxe3 {[%emt 0:13:01]} 30. Rd6 {[%emt 0:00:04]} g5 {[%emt 0:00:00]} 31. f5 {[%emt 0:00:04]} Re5 {[%emt 0:00:00]} 32. g4 {[%emt 0:00:24]} h5 {[%emt 0:00:00]} 33. h3 {[%emt 0:00:07]} hxg4 {[%emt 0:00:00]} 34. hxg4 {[%emt 0:00:02]} Kc7 {[%emt 0:00:00]} 35. Rg6 {[%emt 0:00:08]} cxb3+ {[%emt 0:00:00]} 36. axb3 {[%emt 0:00:02]} Nd7 {[%emt 0:00:00]} 37. Rxg5 {[%emt 0:00:09]} Re1 {[%emt 0:00:00]} 38. Rg6 {[%emt 0:00:15]} Rf1 {[%emt 0:00:00]} 39. Nd5+ {[%emt 0:00:13]} Kd8 {[%emt 0:00:00]} 40. Rg8+ {[%emt 0:00:02]} Nf8 {[%emt 0:00:00]} 41. Rxf8+ {[%emt 0:00:02]} Kd7 {[%emt 0:00:00]} 42. g5 {[%emt 0:00:08]} Kd6 {[%emt 0:00:00]} 43. Ne3 {[%emt 0:00:07]} Rf2+ {[%emt 0:00:00]} 44. Kd3 {[%emt 0:00:01]} Rb2 {[%emt 0:00:00] Check Result:#13} 45. Nc4+ {[%emt 0:00:03]} 1-0

[Event "Asian Amateur Rapid 2024"]
[Site "Al Ain"]
[Date "2024.12.15"]
[Round "4.29"]
[White "nawaf saleh basabaien"]
[Black "Eisa Mohmood, Alkhoori"]
[Result "0-1"]
[ECO "A01"]
[WhiteElo "1729"]
[BlackElo "1853"]
[Annotator "NA COMBH"]
[PlyCount "67"]
[EventDate "2024.12.15"]
[EventType "swiss"]
[EventCountry "UAE"]
[SourceTitle "playchess.com"]
[Source "ChessBase"]
[SourceQuality "1"]
[TimeControl "900+10"]

1. b3 {[%emt 0:00:02]} e5 {[%emt 0:00:10]} 2. Bb2 {[%emt 0:00:01]} Nc6 {[%emt 0:00:02]} 3. e3 {[%emt 0:00:02]} d5 {[%emt 0:00:04]} 4. Bb5 {[%emt 0:00:02]} Bd6 {[%emt 0:00:14]} 5. f4 {[%emt 0:00:02]} Qe7 {[%emt 0:00:56]} 6. Nf3 {[%emt 0:00:06]} f6 {[%emt 0:00:27] A01: Nimzowitsch-Larsen Opening.} 7. Nc3 {[%emt 0:00:26]} Be6 {[%emt 0:00:47]} 8. O-O {[%emt 0:00:15]} O-O-O {[%emt 0:00:29]} 9. Bxc6 {[%emt 0:00:59]} bxc6 {[%emt 0:00:01]} 10. fxe5 {[%emt 0:00:20]} fxe5 {[%emt 0:00:07]} 11. h3 {[%emt 0:00:36]} Nf6 {[%emt 0:01:20]} 12. d3 {[%emt 0:01:19]} h6 {[%emt 0:00:21]} 13. Ne2 {[%emt 0:00:32]} Bd7 {[%emt 0:01:36]} 14. c4 {[%emt 0:00:41]} g5 {[%emt 0:00:06]} 15. Nh2 {[%emt 0:02:22]} g4 {[%emt 0:00:52]} 16. hxg4 {[%emt 0:01:39]} Nxg4 {[%emt 0:00:01]} 17. Nxg4 {[%emt 0:02:20]} Bxg4 {[%emt 0:00:05]} 18. Qe1 {[%emt 0:00:22]} Rhg8 {[%emt 0:00:26]} 19. cxd5 {[%emt 0:02:05]} cxd5 {[%emt 0:00:18]} 20. Nc3 {[%emt 0:00:14]} Bc5 {[%emt 0:01:29]} 21. Na4 {[%emt 0:00:20]} Bh3 {[%emt 0:00:25]} 22. Rf2 {[%emt 0:00:56]} Bxg2 {[%emt 0:01:50]} 23. Rxg2 {[%emt 0:00:42]} Rxg2+ {[%emt 0:00:07]} 24. Kxg2 {[%emt 0:00:02]} Rg8+ {[%emt 0:01:23]} 25. Kf1 {[%emt 0:01:16]} Qg5 {[%emt 0:01:52]} 26. Ke2 {[%emt 0:01:27]} Qxe3+ {[%emt 0:00:18]} 27. Kd1 {[%emt 0:00:32]} Rg1 {[%emt 0:00:14]} 28. Qxg1 {[%emt 0:00:00]} Qxg1+ {[%emt 0:00:02]} 29. Kc2 {[%emt 0:00:00]} Qf2+ {[%emt 0:00:06]} 30. Kb1 {[%emt 0:00:00]} Qf1+ {[%emt 0:00:44]} 31. Kc2 {[%emt 0:00:02]} Qe2+ {[%emt 0:00:04]} 32. Kc3 {[%emt 0:00:34]} Bd4+ {[%emt 0:00:05]} 33. Kb4 {[%emt 0:00:02]} Bxb2 $19 {[%emt 0:00:12] Check Result:-61.91} 34. Nxb2 {[%emt 0:00:32]} 0-1

[Event "Asian Amateur Rapid 2024"]
[Site "Al Ain"]
[Date "2024.12.15"]
[Round "4.30"]
[White "Alajati, Abdl Alrahman."]
[Black "Mohamed Yousuf Al-Ali"]
[Result "0-1"]
[ECO "B13"]
[WhiteElo "1555"]
[BlackElo "1569"]
[Annotator "NA COMBH"]
[PlyCount "84"]
[EventDate "2024.12.15"]
[EventType "swiss"]
[EventCountry "UAE"]
[SourceTitle "playchess.com"]
[Source "ChessBase"]
[SourceQuality "1"]
[TimeControl "900+10"]

1. e4 {[%emt 0:00:03]} c6 {[%emt 0:00:05]} 2. d4 {[%emt 0:00:02]} d5 {[%emt 0:00:01]} 3. exd5 {[%emt 0:00:02]} cxd5 {[%emt 0:00:02]} 4. Bd3 {[%emt 0:00:01]} Nf6 {[%emt 0:00:04]} 5. h3 {[%emt 0:00:04]} Nc6 {[%emt 0:00:01]} 6. c3 {[%emt 0:00:01]} g6 {[%emt 0:00:01]} 7. Nf3 {[%emt 0:00:04]} Bg7 {[%emt 0:00:02]} 8. O-O {[%emt 0:00:04]} O-O {[%emt 0:00:10]} 9. Bf4 {[%emt 0:00:04]} Bf5 {[%emt 0:00:02]} 10. Bxf5 {[%emt 0:00:17]} gxf5 {[%emt 0:00:02]} 11. Nbd2 {[%emt 0:00:25]} Ne4 {[%emt 0:00:17]} 12. Re1 {[%emt 0:01:07]} Qb6 {[%emt 0:00:28]} 13. Qc2 {[%emt 0:01:32]} Rac8 {[%emt 0:00:57]} 14. Nb3 {[%emt 0:00:39]} Nxd4 {[%emt 0:00:48]} 15. Nbxd4 {[%emt 0:00:37]} Bxd4 {[%emt 0:00:07]} 16. Nxd4 {[%emt 0:00:15]} Qxd4 {[%emt 0:00:02]} 17. Qe2 {[%emt 0:02:08]} Nxc3 {[%emt 0:00:20]} 18. Qf3 {[%emt 0:00:31]} Ne4 {[%emt 0:00:12]} 19. Rad1 {[%emt 0:01:59]} Qxb2 {[%emt 0:00:25]} 20. Rxd5 {[%emt 0:00:25]} Rc3 {[%emt 0:00:34]} 21. Be3 {[%emt 0:00:45]} e6 {[%emt 0:00:24]} 22. Rd4 {[%emt 0:00:49]} Ra3 {[%emt 0:01:37]} 23. Rxe4 {[%emt 0:01:09]} fxe4 {[%emt 0:00:17]} 24. Qxe4 {[%emt 0:00:02]} Rd8 {[%emt 0:00:54]} 25. Bf4 {[%emt 0:02:05]} Qd4 {[%emt 0:03:11]} 26. Bh6 {[%emt 0:02:30]} Qxe4 {[%emt 0:00:22]} 27. Rxe4 {[%emt 0:00:02]} f5 {[%emt 0:00:06]} 28. Rxe6 {[%emt 0:00:04]} Kf7 {[%emt 0:00:01]} 29. Re5 {[%emt 0:00:29]} Rxa2 {[%emt 0:00:11]} 30. Rxf5+ {[%emt 0:00:07]} Kg6 {[%emt 0:00:02]} 31. Bg5 {[%emt 0:00:07]} Rd1+ {[%emt 0:00:01]} 32. Kh2 {[%emt 0:00:03]} Kxf5 {[%emt 0:00:01]} 33. Be3 {[%emt 0:00:03]} b5 {[%emt 0:00:04]} 34. g4+ {[%emt 0:00:07]} Ke4 {[%emt 0:00:01]} 35. Kg3 {[%emt 0:00:02]} Rd3 {[%emt 0:00:03]} 36. h4 {[%emt 0:00:05]} Rxe3+ {[%emt 0:00:02]} 37. fxe3 {[%emt 0:00:01]} b4 {[%emt 0:00:01]} 38. g5 {[%emt 0:00:08]} b3 {[%emt 0:00:01]} 39. h5 {[%emt 0:00:02]} b2 {[%emt 0:00:01]} 40. g6 {[%emt 0:00:01]} b1=Q {[%emt 0:00:02]} 41. gxh7 {[%emt 0:00:05]} Qg1+ {[%emt 0:00:01]} 42. Kh4 {[%emt 0:00:04] Check Result:?ev?} Rh2# {[%emt 0:00:02]} 0-1

[Event "Asian Amateur Rapid 2024"]
[Site "Al Ain"]
[Date "2024.12.15"]
[Round "4.31"]
[White "Humaidan Mohamed, Alzaabi"]
[Black "Sinno, Abdul Salam"]
[Result "1-0"]
[ECO "B43"]
[WhiteElo "1811"]
[BlackElo "1527"]
[Annotator "NA COMBH"]
[PlyCount "76"]
[EventDate "2024.12.15"]
[EventType "swiss"]
[EventCountry "UAE"]
[SourceTitle "playchess.com"]
[Source "ChessBase"]
[SourceQuality "1"]
[TimeControl "900+10"]

1. e4 {[%emt 0:00:02]} c5 {[%emt 0:00:01]} 2. Nf3 {[%emt 0:00:07]} e6 {[%emt 0:00:02]} 3. d4 {[%emt 0:00:00]} cxd4 {[%emt 0:00:01]} 4. Nxd4 {[%emt 0:00:01]} a6 {[%emt 0:00:01]} 5. Nc3 {[%emt 0:00:02]} Qc7 {[%emt 0:00:01]} 6. Bd3 {[%emt 0:00:03]} Bb4 {[%emt 0:00:02]} 7. Bd2 {[%emt 0:00:08] B43: Sicilian: Kan Variation: 5 Nc3.} Nf6 {[%emt 0:00:19]} 8. Qe2 {[%emt 0:00:09]} d6 {[%emt 0:00:13] is the new trend.} 9. O-O-O {[%emt 0:00:16]} e5 {[%emt 0:00:08]} 10. Nf3 $146 {[%emt 0:00:20]} ({Predecessor:} 10. Nb3 O-O 11. Kb1 Bxc3 12. Bxc3 Nc6 13. Qe1 a5 14. a4 h6 15. f4 Bg4 16. Rd2 {0-1 Ansat,A (2421)-Maghsoodloo,P (2732) Aktobe Dvorkovich op 2024 (1)}) 10... Be6 {[%emt 0:00:30]} 11. Kb1 {[%emt 0:00:03]} Bxc3 {[%emt 0:00:05]} 12. Bxc3 {[%emt 0:00:03]} Nbd7 {[%emt 0:00:16]} 13. Ng5 {[%emt 0:01:08]} b5 {[%emt 0:00:12]} 14. Nxe6 {[%emt 0:00:41]} fxe6 {[%emt 0:00:03]} 15. g4 {[%emt 0:00:12]} h6 {[%emt 0:00:10]} 16. h4 {[%emt 0:00:02]} g6 {[%emt 0:01:22]} 17. g5 {[%emt 0:00:57]} Nh5 {[%emt 0:00:02]} 18. gxh6 {[%emt 0:00:14]} Nf4 {[%emt 0:00:24]} 19. Qg4 {[%emt 0:00:15]} Nf6 {[%emt 0:00:02]} 20. Qg5 {[%emt 0:00:41]} O-O-O {[%emt 0:01:16]} 21. Qxf6 {[%emt 0:00:40]} Rxh6 {[%emt 0:00:15]} 22. Bd2 {[%emt 0:00:14]} Rhh8 {[%emt 0:01:22]} 23. Bxf4 {[%emt 0:00:04]} exf4 {[%emt 0:00:01]} 24. Qxe6+ {[%emt 0:00:04]} Kb8 {[%emt 0:00:05]} 25. Qxg6 {[%emt 0:00:09]} Rdg8 {[%emt 0:01:44]} 26. Qf6 {[%emt 0:00:11]} Rf8 {[%emt 0:00:10]} 27. Qd4 {[%emt 0:00:09]} Rh5 {[%emt 0:00:15]} 28. Rdg1 {[%emt 0:00:32]} Re5 {[%emt 0:00:09]} 29. Rg5 {[%emt 0:00:10]} Rfe8 {[%emt 0:00:30]} 30. Rxe5 {[%emt 0:00:06]} dxe5 {[%emt 0:00:03]} 31. Qb4 {[%emt 0:00:11]} Rd8 {[%emt 0:00:11]} 32. h5 {[%emt 0:00:04]} Rd4 {[%emt 0:00:02]} 33. Qc3 {[%emt 0:00:11]} Qh7 {[%emt 0:00:38]} 34. h6 {[%emt 0:00:10]} b4 {[%emt 0:00:01]} 35. Qc6 {[%emt 0:00:15]} a5 {[%emt 0:00:25]} 36. Qb6+ {[%emt 0:00:13]} Ka8 {[%emt 0:00:17]} 37. Qxa5+ {[%emt 0:00:04]} Kb8 {[%emt 0:00:34]} 38. Qxe5+ {[%emt 0:00:06] Check Result:#8} Kc8 {[%emt 0:00:00]} 1-0